[Event "Skalica Rapid 2020"]
[Site "Skalica"]
[Date "2020.08.29"]
[Round "5.9"]
[White "Osicka, Premysl"]
[Black "Bucek, Miroslav"]
[Result "1-0"]
[ECO "D02"]
[WhiteElo "1590"]
[BlackElo "1422"]
[Annotator "NA"]
[PlyCount "175"]
[EventDate "2020.08.29"]
[EventType "swiss"]
[EventCountry "SVK"]
[SourceTitle "playchess.com"]
[Source "ChessBase"]
[SourceQuality "1"]
[TimeControl "600+5"]

1. d4 d5 {[%emt 0:00:01]} 2. Bf4 {[%emt 0:00:18]} Nf6 {[%emt 0:00:06]} 3. Nf3 {[%emt 0:00:01]} Bf5 {[%emt 0:00:04]} 4. e3 {[%emt 0:00:01]} e6 {[%emt 0:00:04]} 5. c3 {[%emt 0:00:01]} Bd6 {[%emt 0:00:02]} 6. Bg3 {[%emt 0:00:01]} O-O {[%emt 0:00:03]} 7. Bd3 {[%emt 0:00:02]} Bxd3 {[%emt 0:00:03]} 8. Qxd3 {[%emt 0:00:01]} h6 {[%emt 0:00:26]} 9. Nbd2 {[%emt 0:00:01]} Nbd7 {[%emt 0:00:02]} 10. e4 {[%emt 0:00:16]} dxe4 {[%emt 0:00:15]} 11. Nxe4 {[%emt 0:00:02]} Nxe4 {[%emt 0:00:02]} 12. Qxe4 {[%emt 0:00:01]} Bxg3 {[%emt 0:00:15]} 13. hxg3 {[%emt 0:00:03]} c6 {[%emt 0:00:05]} 14. O-O-O {[%emt 0:00:13]} Nf6 {[%emt 0:00:07]} 15. Qh4 {[%emt 0:00:10]} Nh7 {[%emt 0:00:33]} 16. g4 {[%emt 0:00:12]} Qxh4 {[%emt 0:00:03]} 17. Rxh4 {[%emt 0:00:01]} f6 {[%emt 0:00:24]} 18. Re1 {[%emt 0:00:27]} Rfe8 {[%emt 0:00:01]} 19. Nd2 {[%emt 0:00:21]} Rad8 {[%emt 0:00:09]} 20. Ne4 {[%emt 0:00:05]} b6 {[%emt 0:00:23]} 21. f4 {[%emt 0:00:09]} Nf8 {[%emt 0:00:13]} 22. g5 {[%emt 0:00:20]} f5 {[%emt 0:00:12]} 23. Ng3 {[%emt 0:00:24]} Ng6 {[%emt 0:00:25]} 24. Rh2 {[%emt 0:00:39]} Nxf4 {[%emt 0:00:06]} 25. Reh1 {[%emt 0:00:11]} hxg5 {[%emt 0:00:17]} 26. Rh8+ {[%emt 0:00:16]} Kf7 {[%emt 0:00:02]} 27. R8h7 {[%emt 0:00:02]} Nxg2 {[%emt 0:00:23]} 28. Nh5 {[%emt 0:00:09]} Rg8 {[%emt 0:00:03]} 29. Ng3 {[%emt 0:01:14]} f4 {[%emt 0:00:16]} 30. Ne4 {[%emt 0:00:07]} g4 {[%emt 0:01:03]} 31. Ng5+ {[%emt 0:00:15]} Kf6 {[%emt 0:00:33]} 32. Ne4+ {[%emt 0:00:06]} Kf7 {[%emt 0:00:02]} 33. R1h6 {[%emt 0:00:13]} Ke7 {[%emt 0:01:07]} 34. Ng5 {[%emt 0:00:02]} Rd6 {[%emt 0:00:31]} 35. Ne4 {[%emt 0:01:19]} Rd7 {[%emt 0:00:02]} 36. Rg6 {[%emt 0:00:46]} g3 {[%emt 0:00:30]} 37. Ng5 {[%emt 0:00:36]} Rd6 {[%emt 0:00:27]} 38. Nf3 {[%emt 0:00:17]} e5 {[%emt 0:00:29]} 39. Rgxg7+ {[%emt 0:00:40]} Rxg7 {[%emt 0:00:01]} 40. Rxg7+ {[%emt 0:00:01]} Kf8 {[%emt 0:00:13]} 41. dxe5 {[%emt 0:00:17]} Re6 {[%emt 0:00:14]} 42. Rxa7 {[%emt 0:00:14]} Ne3 {[%emt 0:00:14]} 43. Ra8+ {[%emt 0:00:24]} Ke7 {[%emt 0:00:14]} 44. Ra7+ {[%emt 0:00:06]} Kd8 {[%emt 0:00:01]} 45. Rf7 {[%emt 0:00:09]} g2 {[%emt 0:00:17]} 46. Rxf4 {[%emt 0:00:14]} Rxe5 {[%emt 0:00:06]} 47. Kd2 {[%emt 0:00:17]} Nf1+ {[%emt 0:00:11]} 48. Kd3 {[%emt 0:00:05]} Rg5 {[%emt 0:00:10]} 49. Ke2 {[%emt 0:00:25]} g1=Q {[%emt 0:00:09]} 50. Nxg1 {[%emt 0:00:02]} Rxg1 {[%emt 0:00:03]} 51. Rxf1 {[%emt 0:00:01]} Rg2+ {[%emt 0:00:10]} 52. Rf2 {[%emt 0:00:02]} Rg1 {[%emt 0:00:05]} 53. Kd3 {[%emt 0:00:03]} Kc7 {[%emt 0:00:04]} 54. Kc4 {[%emt 0:00:02]} b5+ {[%emt 0:00:02]} 55. Kb3 {[%emt 0:00:01]} Kb6 {[%emt 0:00:02]} 56. a4 {[%emt 0:00:16]} bxa4+ {[%emt 0:00:07]} 57. Kxa4 {[%emt 0:00:01]} Ra1+ {[%emt 0:00:07]} 58. Kb3 {[%emt 0:00:01]} c5 {[%emt 0:00:02]} 59. Kc4 {[%emt 0:00:06]} Ra4+ {[%emt 0:00:03]} 60. b4 {[%emt 0:00:14]} cxb4 {[%emt 0:00:16]} 61. cxb4 {[%emt 0:00:01]} Ra1 {[%emt 0:00:06]} 62. Rf6+ {[%emt 0:00:10]} Kc7 {[%emt 0:00:03]} 63. Kb5 {[%emt 0:00:05]} Rb1 {[%emt 0:00:04]} 64. Rc6+ {[%emt 0:00:10]} Kb7 {[%emt 0:00:02]} 65. Rh6 {[%emt 0:00:04]} Kc7 {[%emt 0:00:08]} 66. Rh5 {[%emt 0:00:11]} Kb7 {[%emt 0:00:02]} 67. Rc5 {[%emt 0:00:04]} Ka7 {[%emt 0:00:08]} 68. Rc7+ {[%emt 0:00:16]} Kb8 69. Rh7 {[%emt 0:00:03]} Kc8 {[%emt 0:00:05]} 70. Kc6 {[%emt 0:00:09]} Rc1+ {[%emt 0:00:07]} 71. Kb6 {[%emt 0:00:01]} Rb1 {[%emt 0:00:11]} 72. b5 {[%emt 0:00:01]} Kd8 {[%emt 0:00:13]} 73. Rc7 {[%emt 0:00:08]} Rb2 {[%emt 0:00:15]} 74. Rc5 {[%emt 0:00:03]} Ra2 {[%emt 0:00:14]} 75. Kb7 {[%emt 0:00:03]} Ra5 {[%emt 0:00:09]} 76. Rc8+ {[%emt 0:00:09]} Kd7 {[%emt 0:00:04]} 77. b6 {[%emt 0:00:02]} Rb5 {[%emt 0:00:26]} 78. Rc7+ {[%emt 0:00:08]} Kd8 {[%emt 0:00:06]} 79. Ka6 {[%emt 0:00:30]} Rb3 {[%emt 0:00:06]} 80. Rc5 {[%emt 0:00:21]} Ra3+ {[%emt 0:00:13]} 81. Kb7 {[%emt 0:00:05]} Rb3 {[%emt 0:00:07]} 82. Rc6 {[%emt 0:00:21]} Kd7 {[%emt 0:00:07]} 83. Rh6 {[%emt 0:00:04]} Ra3 {[%emt 0:00:38]} 84. Kb8 {[%emt 0:00:20]} Ra6 {[%emt 0:00:14]} 85. Kb7 {[%emt 0:00:03]} Ra3 {[%emt 0:00:05]} 86. Rh4 {[%emt 0:00:06]} Ra2 {[%emt 0:00:24]} 87. Rd4+ {[%emt 0:00:08]} Ke7 {[%emt 0:00:03]} 88. Kb8 {[%emt 0:00:09]} 1-0

[Event "Skalica Rapid 2020"]
[Site "Skalica"]
[Date "2020.08.29"]
[Round "5.10"]
[White "Jurakic Lukas"]
[Black "Blaho, Stefan"]
[Result "1-0"]
[ECO "B72"]
[WhiteElo "1918"]
[BlackElo "2090"]
[Annotator "ChessBase"]
[PlyCount "43"]
[EventDate "2020.08.29"]
[EventType "swiss"]
[EventCountry "SVK"]
[SourceTitle "playchess.com"]
[Source "ChessBase"]
[SourceQuality "1"]
[TimeControl "600+5"]

1. e4 {[%emt 0:00:00]} c5 {[%emt 0:00:00]} 2. Nf3 {[%emt 0:00:00]} d6 {[%emt 0:00:00]} 3. d4 {[%emt 0:00:01]} cxd4 {[%emt 0:00:01]} 4. Nxd4 {[%emt 0:00:01]} Nf6 {[%emt 0:00:01]} 5. Nc3 {[%emt 0:00:01]} g6 {[%emt 0:00:02]} 6. Be3 {[%emt 0:00:01]} Bg7 {[%emt 0:00:02]} 7. Be2 {[%emt 0:00:02]} O-O {[%emt 0:00:19]} 8. Qd2 {[%emt 0:00:01]} Nc6 {[%emt 0:00:29]} 9. O-O-O {[%emt 0:00:03]} Ng4 {[%emt 0:00:08]} 10. Bxg4 {[%emt 0:00:03]} Bxg4 {[%emt 0:00:01]} 11. f3 {[%emt 0:00:02]} Bd7 {[%emt 0:00:09]} 12. Nxc6 {[%emt 0:00:42]} bxc6 {[%emt 0:00:06]} 13. Bh6 {[%emt 0:00:22]} Qa5 {[%emt 0:03:41]} 14. Bxg7 {[%emt 0:00:04]} Kxg7 {[%emt 0:00:01]} 15. h4 {[%emt 0:00:25]} h6 {[%emt 0:00:28]} 16. h5 {[%emt 0:00:19]} g5 {[%emt 0:00:03]} 17. Qd4+ {[%emt 0:00:46]} f6 {[%emt 0:00:04]} 18. Qd3 {[%emt 0:00:39]} Qe5 {[%emt 0:00:19]} 19. Ne2 {[%emt 0:00:14]} Rab8 {[%emt 0:00:04]} 20. c3 {[%emt 0:00:16]} Be6 {[%emt 0:00:08]} 21. f4 {[%emt 0:02:18]} c5 {[%emt 0:02:10]} 22. Rhf1 {[%emt 0:05:05]} 1-0

[Event "Skalica Rapid 2020"]
[Site "Skalica"]
[Date "2020.08.29"]
[Round "5.11"]
[White "Panko Radoslav"]
[Black "Skreno Vladimir"]
[Result "1/2-1/2"]
[ECO "B23"]
[WhiteElo "1913"]
[BlackElo "2089"]
[Annotator "ChessBase"]
[PlyCount "133"]
[EventDate "2020.08.29"]
[EventType "swiss"]
[EventCountry "SVK"]
[SourceTitle "playchess.com"]
[Source "ChessBase"]
[SourceQuality "1"]
[TimeControl "600+5"]

1. e4 {[%emt 0:00:00]} c5 {[%emt 0:00:05]} 2. Nc3 {[%emt 0:00:00]} Nc6 {[%emt 0:00:03]} 3. f4 {[%emt 0:00:01]} g6 {[%emt 0:00:06]} 4. Nf3 {[%emt 0:00:02]} Bg7 {[%emt 0:00:01]} 5. Bb5 {[%emt 0:00:01]} Nd4 {[%emt 0:00:11]} 6. Bd3 {[%emt 0:00:01]} e6 {[%emt 0:00:11]} 7. Nxd4 {[%emt 0:00:02]} cxd4 {[%emt 0:00:14]} 8. Nb5 {[%emt 0:00:02]} d6 {[%emt 0:00:11]} 9. c3 {[%emt 0:00:01]} dxc3 {[%emt 0:00:49]} 10. bxc3 {[%emt 0:00:49]} Ne7 {[%emt 0:01:14]} 11. Ba3 {[%emt 0:00:18]} O-O {[%emt 0:00:06]} 12. Nxd6 {[%emt 0:00:06]} Re8 {[%emt 0:00:17]} 13. Bb5 {[%emt 0:00:14]} Nc6 {[%emt 0:00:04]} 14. Nxe8 {[%emt 0:00:24]} Qxe8 {[%emt 0:00:06]} 15. O-O {[%emt 0:00:17]} a6 {[%emt 0:00:02]} 16. Be2 {[%emt 0:00:09]} b5 {[%emt 0:00:11]} 17. Bc5 {[%emt 0:00:11]} Bb7 {[%emt 0:00:06]} 18. d4 {[%emt 0:00:25]} Rd8 {[%emt 0:00:07]} 19. a4 {[%emt 0:00:08]} b4 {[%emt 0:00:16]} 20. e5 {[%emt 0:00:42]} bxc3 {[%emt 0:00:08]} 21. Qd3 {[%emt 0:00:08]} c2 {[%emt 0:00:30]} 22. Qxc2 {[%emt 0:00:35]} Nxd4 {[%emt 0:00:32]} 23. Bxd4 {[%emt 0:00:05]} Rxd4 {[%emt 0:00:01]} 24. Qc7 {[%emt 0:00:09]} Bd5 {[%emt 0:00:25]} 25. Bxa6 {[%emt 0:00:34]} Rxa4 {[%emt 0:00:07]} 26. Qc8 {[%emt 0:00:26]} Qxc8 {[%emt 0:00:14]} 27. Bxc8 {[%emt 0:00:01]} Rc4 {[%emt 0:00:11]} 28. Ba6 {[%emt 0:00:09]} Rc2 {[%emt 0:00:12]} 29. Rf2 {[%emt 0:00:04]} Rc7 {[%emt 0:00:05]} 30. Re2 {[%emt 0:00:40]} Ra7 {[%emt 0:00:12]} 31. Ree1 {[%emt 0:00:12]} Bf8 {[%emt 0:00:07]} 32. Be2 {[%emt 0:00:09]} Rc7 {[%emt 0:00:22]} 33. Rac1 {[%emt 0:00:18]} Ra7 {[%emt 0:00:05]} 34. Bf3 {[%emt 0:00:22]} Bxf3 {[%emt 0:00:17]} 35. gxf3 {[%emt 0:00:02]} Ra4 {[%emt 0:00:12]} 36. Re4 {[%emt 0:00:02]} Ra2 {[%emt 0:00:02]} 37. Rec4 {[%emt 0:00:22]} Bh6 {[%emt 0:00:03]} 38. Rf1 {[%emt 0:00:18]} Bf8 {[%emt 0:00:19]} 39. Rf2 {[%emt 0:00:11]} Ra5 {[%emt 0:01:12]} 40. Kg2 {[%emt 0:00:09]} Bc5 {[%emt 0:00:08]} 41. Re2 {[%emt 0:00:37]} Bb6 {[%emt 0:00:07]} 42. Kg3 {[%emt 0:00:26]} Kg7 {[%emt 0:00:11]} 43. Rb2 {[%emt 0:00:26]} Be3 {[%emt 0:00:24]} 44. Rb3 {[%emt 0:00:14]} Bg1 {[%emt 0:00:14]} 45. Rb1 {[%emt 0:00:32]} Be3 {[%emt 0:00:22]} 46. Rb3 {[%emt 0:00:01]} Bg1 {[%emt 0:00:01]} 47. Kg2 {[%emt 0:00:20]} Rc5 {[%emt 0:00:22]} 48. Rxc5 {[%emt 0:00:25]} Bxc5 {[%emt 0:00:01]} 49. Rb7 {[%emt 0:00:10]} h5 {[%emt 0:00:11]} 50. h3 {[%emt 0:00:19]} Be3 {[%emt 0:00:02]} 51. Kg3 {[%emt 0:00:04]} Bd2 {[%emt 0:00:02]} 52. Rd7 {[%emt 0:00:08]} Be1+ {[%emt 0:00:03]} 53. Kg2 {[%emt 0:00:04]} Ba5 {[%emt 0:00:03]} 54. Kf2 {[%emt 0:00:09]} Bb6+ {[%emt 0:00:04]} 55. Ke2 {[%emt 0:00:03]} Bc5 {[%emt 0:00:05]} 56. Kd3 {[%emt 0:00:14]} Bb6 {[%emt 0:00:00]} 57. Kc4 {[%emt 0:00:20]} Be3 {[%emt 0:00:05]} 58. Kd3 {[%emt 0:00:39]} Bxf4 {[%emt 0:00:02]} 59. Ke4 {[%emt 0:00:02]} Bg3 {[%emt 0:00:11]} 60. Rd1 {[%emt 0:00:16]} g5 {[%emt 0:00:14]} 61. Rg1 {[%emt 0:00:23]} h4 {[%emt 0:00:07]} 62. Rg2 {[%emt 0:00:16]} Kg6 {[%emt 0:00:01]} 63. Re2 {[%emt 0:00:03]} Bf4 {[%emt 0:00:05]} 64. Rg2 {[%emt 0:00:04]} Bg3 {[%emt 0:00:14]} 65. Ra2 {[%emt 0:00:03]} Bf4 {[%emt 0:00:10]} 66. Ra8 {[%emt 0:00:09]} Kg7 {[%emt 0:00:16]} 67. Rc8 {[%emt 0:00:11]} 1/2-1/2

[Event "Skalica Rapid 2020"]
[Site "Skalica"]
[Date "2020.08.29"]
[Round "5.11"]
[White "Blaha, Tomas S"]
[Black "Tupy, Emil"]
[Result "0-1"]
[ECO "C10"]
[WhiteElo "1089"]
[BlackElo "1538"]
[Annotator "NA"]
[PlyCount "62"]
[EventDate "2020.08.29"]
[EventType "swiss"]
[EventCountry "SVK"]
[SourceTitle "playchess.com"]
[Source "ChessBase"]
[SourceQuality "1"]
[TimeControl "600+5"]

1. e4 {[%emt 0:00:00]} e6 {[%emt 0:00:00]} 2. d4 {[%emt 0:00:00]} d5 {[%emt 0:00:00]} 3. Nc3 {[%emt 0:00:10]} c6 {[%emt 0:00:01]} 4. exd5 {[%emt 0:00:24]} cxd5 {[%emt 0:00:05]} 5. Bb5+ {[%emt 0:00:12]} Nc6 {[%emt 0:00:03]} 6. Nf3 {[%emt 0:00:08]} Bd6 {[%emt 0:00:09]} 7. O-O {[%emt 0:00:13]} Nge7 {[%emt 0:00:03]} 8. Bg5 f6 {[%emt 0:00:08]} 9. Be3 {[%emt 0:00:26]} O-O {[%emt 0:00:07]} 10. Qd2 {[%emt 0:00:49]} a6 {[%emt 0:00:05]} 11. Bxc6 {[%emt 0:00:03]} bxc6 {[%emt 0:00:05]} 12. Rfe1 {[%emt 0:01:02]} Nf5 {[%emt 0:00:02]} 13. Bf4 {[%emt 0:00:08]} Qc7 {[%emt 0:00:25]} 14. Na4 {[%emt 0:01:07]} Bxf4 {[%emt 0:00:06]} 15. Qb4 {[%emt 0:00:43]} Bd6 {[%emt 0:00:22]} 16. Qb6 {[%emt 0:00:13]} Qxb6 {[%emt 0:00:10]} 17. Nxb6 {[%emt 0:00:02]} Rb8 {[%emt 0:00:04]} 18. Nxc8 {[%emt 0:00:05]} Rfxc8 {[%emt 0:00:02]} 19. b3 {[%emt 0:00:24]} Re8 {[%emt 0:00:17]} 20. c3 {[%emt 0:00:33]} e5 {[%emt 0:00:05]} 21. dxe5 {[%emt 0:00:08]} fxe5 {[%emt 0:00:02]} 22. g4 {[%emt 0:00:34]} Nh6 {[%emt 0:00:17]} 23. Rad1 {[%emt 0:00:37]} Nxg4 {[%emt 0:00:04]} 24. h3 {[%emt 0:00:14]} Nh6 {[%emt 0:00:22]} 25. Nh4 {[%emt 0:00:31]} e4 {[%emt 0:00:12]} 26. c4 {[%emt 0:00:06]} g5 {[%emt 0:00:14]} 27. Ng2 {[%emt 0:00:53]} Re5 {[%emt 0:00:14]} 28. h4 {[%emt 0:00:17]} Rbe8 {[%emt 0:00:21]} 29. hxg5 {[%emt 0:00:13]} Rxg5 {[%emt 0:00:04]} 30. f4 {[%emt 0:00:04]} Bxf4 {[%emt 0:00:16]} 31. Rf1 {[%emt 0:00:31]} Be3+ {[%emt 0:00:10]} 0-1

[Event "Skalica Rapid 2020"]
[Site "Skalica"]
[Date "2020.08.29"]
[Round "5.12"]
[White "Bidulsky, Matej"]
[Black "O`gorman Tom"]
[Result "0-1"]
[ECO "B86"]
[WhiteElo "1548"]
[BlackElo "2027"]
[Annotator "ChessBase"]
[PlyCount "60"]
[EventDate "2020.08.29"]
[EventType "swiss"]
[EventCountry "SVK"]
[SourceTitle "playchess.com"]
[Source "ChessBase"]
[SourceQuality "1"]
[TimeControl "600+5"]

1. e4 {[%emt 0:00:00]} c5 {[%emt 0:00:00]} 2. Bc4 {[%emt 0:00:00]} d6 {[%emt 0:00:01]} 3. Nf3 {[%emt 0:00:01]} Nf6 {[%emt 0:00:01]} 4. Nc3 {[%emt 0:00:01]} a6 {[%emt 0:00:01]} 5. a4 {[%emt 0:00:01]} e6 {[%emt 0:00:03]} 6. d4 {[%emt 0:00:02]} cxd4 {[%emt 0:00:02]} 7. Nxd4 {[%emt 0:00:01]} Be7 {[%emt 0:00:08]} 8. Bg5 {[%emt 0:00:02]} Nc6 {[%emt 0:00:06]} 9. O-O {[%emt 0:00:04]} O-O {[%emt 0:00:02]} 10. Re1 {[%emt 0:00:02]} Bd7 {[%emt 0:00:02]} 11. Nxc6 {[%emt 0:00:03]} Bxc6 {[%emt 0:00:08]} 12. Bd3 {[%emt 0:00:12]} Rc8 {[%emt 0:00:03]} 13. e5 {[%emt 0:00:11]} dxe5 {[%emt 0:00:01]} 14. Rxe5 {[%emt 0:00:02]} h6 {[%emt 0:00:04]} 15. Bh4 {[%emt 0:00:03]} Qc7 {[%emt 0:00:09]} 16. Qe2 {[%emt 0:00:05]} Rfd8 {[%emt 0:00:07]} 17. Re1 {[%emt 0:00:49]} Rd4 {[%emt 0:00:17]} 18. Bg3 {[%emt 0:00:36]} Bd6 {[%emt 0:00:05]} 19. Re3 {[%emt 0:00:02]} Bxa4 {[%emt 0:00:15]} 20. Nxa4 {[%emt 0:00:07]} Rxa4 {[%emt 0:00:02]} 21. b3 {[%emt 0:00:37]} Rd4 {[%emt 0:00:18]} 22. Bxd6 {[%emt 0:00:16]} Qxd6 {[%emt 0:00:05]} 23. Rg3 {[%emt 0:00:01]} b5 {[%emt 0:00:37]} 24. Qf3 {[%emt 0:00:07]} Rf4 {[%emt 0:00:03]} 25. Qb7 {[%emt 0:00:09]} Rb8 {[%emt 0:00:04]} 26. Rxe6 {[%emt 0:00:17]} Qd8 {[%emt 0:01:13]} 27. Qa7 {[%emt 0:00:30]} Nh5 {[%emt 0:00:09]} 28. Rxa6 {[%emt 0:02:31]} Nxg3 {[%emt 0:00:03]} 29. hxg3 {[%emt 0:00:02]} Rf6 {[%emt 0:00:09]} 30. Qe3 {[%emt 0:00:10]} Rxa6 {[%emt 0:00:04]} 0-1

[Event "Skalica Rapid 2020"]
[Site "Skalica"]
[Date "2020.08.29"]
[Round "5.12"]
[White "Gurevich, Michele"]
[Black "Janas, Peter"]
[Result "0-1"]
[ECO "B02"]
[WhiteElo "1107"]
[BlackElo "1562"]
[Annotator "NA RC"]
[PlyCount "120"]
[EventDate "2020.08.29"]
[EventType "swiss"]
[EventCountry "SVK"]
[SourceTitle "playchess.com"]
[Source "ChessBase"]
[SourceQuality "1"]
[TimeControl "600+5"]

1. e4 {[%emt 0:00:00]} Nf6 {[%emt 0:00:13]} 2. e5 {[%emt 0:00:00]} Nd5 {[%emt 0:00:01]} 3. Nc3 {[%emt 0:00:08]} Nxc3 {[%emt 0:00:08]} 4. dxc3 {[%emt 0:00:04]} d6 {[%emt 0:00:02]} 5. Nf3 {[%emt 0:00:08]} g6 6. Bc4 {[%emt 0:00:27]} Bg7 {[%emt 0:00:37]} 7. exd6 {[%emt 0:01:16]} cxd6 {[%emt 0:00:14]} 8. O-O {[%emt 0:00:53]} O-O {[%emt 0:00:07]} 9. Re1 {[%emt 0:00:49]} Nd7 {[%emt 0:00:29]} 10. Ng5 {[%emt 0:00:30]} Ne5 {[%emt 0:01:13]} 11. Bb3 {[%emt 0:01:59]} h6 {[%emt 0:00:07]} 12. Nf3 {[%emt 0:00:12]} Bg4 13. Bd5 {[%emt 0:00:31]} Qb6 {[%emt 0:01:57]} 14. Be3 {[%emt 0:01:42]} Qxb2 {[%emt 0:00:34]} 15. Rb1 {[%emt 0:00:20]} Qxc3 {[%emt 0:00:12]} 16. Bd4 {[%emt 0:00:24]} Nxf3+ {[%emt 0:00:34]} 17. Bxf3 {[%emt 0:00:18]} Qxd4 {[%emt 0:01:24]} 18. Qxd4 {[%emt 0:00:06]} Bxd4 {[%emt 0:00:03]} 19. Bxg4 {[%emt 0:00:05]} e6 {[%emt 0:00:27]} 20. Red1 {[%emt 0:00:16]} Bc5 {[%emt 0:00:14]} 21. Rxb7 {[%emt 0:00:38]} Rab8 {[%emt 0:00:07]} 22. Rxb8 {[%emt 0:00:20]} Rxb8 {[%emt 0:00:03]} 23. h3 {[%emt 0:00:08]} Rb2 {[%emt 0:00:06]} 24. Rc1 {[%emt 0:00:08]} Rxa2 {[%emt 0:00:05]} 25. Kh2 {[%emt 0:00:04]} Bxf2 {[%emt 0:00:08]} 26. Kh1 {[%emt 0:00:03]} d5 {[%emt 0:00:13]} 27. Kh2 {[%emt 0:00:01]} d4 {[%emt 0:00:06]} 28. Kh1 {[%emt 0:00:02]} Be3 {[%emt 0:00:04]} 29. Re1 {[%emt 0:00:06]} Rxc2 {[%emt 0:00:03]} 30. Rd1 {[%emt 0:00:08]} Rc1 {[%emt 0:00:08]} 31. Rxc1 {[%emt 0:00:05]} Bxc1 {[%emt 0:00:02]} 32. Kg1 {[%emt 0:00:01]} Kf8 {[%emt 0:00:05]} 33. Kf2 {[%emt 0:00:01]} Ke7 {[%emt 0:00:01]} 34. Ke2 {[%emt 0:00:01]} Kd6 {[%emt 0:00:02]} 35. Kd3 {[%emt 0:00:01]} e5 {[%emt 0:00:07]} 36. Kc4 {[%emt 0:00:02]} f5 {[%emt 0:00:06]} 37. Bf3 {[%emt 0:00:03]} Be3 {[%emt 0:00:05]} 38. Kb5 {[%emt 0:00:04]} e4 {[%emt 0:00:03]} 39. Be2 {[%emt 0:00:03]} Ke5 {[%emt 0:00:06]} 40. Kc4 {[%emt 0:00:06]} d3 {[%emt 0:00:04]} 41. Bxd3 {[%emt 0:00:06]} exd3 {[%emt 0:00:02]} 42. Kxd3 {[%emt 0:00:02]} f4 {[%emt 0:00:05]} 43. g3 {[%emt 0:00:08]} g5 {[%emt 0:00:01]} 44. h4 {[%emt 0:00:04]} Bb6 {[%emt 0:00:08]} 45. Ke2 {[%emt 0:00:21]} fxg3 {[%emt 0:00:04]} 46. Kf3 {[%emt 0:00:01]} Bf2 {[%emt 0:00:03]} 47. Kg2 {[%emt 0:00:02]} Kf4 {[%emt 0:00:02]} 48. hxg5 {[%emt 0:00:04]} hxg5 {[%emt 0:00:02]} 49. Kf1 {[%emt 0:00:01]} a5 {[%emt 0:00:03]} 50. Kg2 {[%emt 0:00:04]} a4 {[%emt 0:00:01]} 51. Kf1 {[%emt 0:00:02]} a3 {[%emt 0:00:01]} 52. Kg2 {[%emt 0:00:01]} a2 {[%emt 0:00:02]} 53. Kf1 {[%emt 0:00:02]} a1=Q+ {[%emt 0:00:03]} 54. Kg2 {[%emt 0:00:03]} Qa8+ {[%emt 0:00:08]} 55. Kf1 {[%emt 0:00:04]} g2+ {[%emt 0:00:05]} 56. Kxf2 {[%emt 0:00:02]} g4 {[%emt 0:00:04]} 57. Kg1 {[%emt 0:00:03]} Qa1+ {[%emt 0:00:07]} 58. Kxg2 {[%emt 0:00:03]} Qa2+ {[%emt 0:00:01]} 59. Kg1 {[%emt 0:00:03]} Kf3 {[%emt 0:00:02]} 60. Kf1 {[%emt 0:00:03]} Qf2# {[%emt 0:00:07]} 0-1

[Event "Skalica Rapid 2020"]
[Site "Skalica"]
[Date "2020.08.29"]
[Round "5.14"]
[White "Takacs Laszlo"]
[Black "Nemsak Denis"]
[Result "1-0"]
[ECO "B01"]
[WhiteElo "2128"]
[BlackElo "1869"]
[Annotator "ChessBase"]
[PlyCount "57"]
[EventDate "2020.08.29"]
[EventType "swiss"]
[EventCountry "SVK"]
[SourceTitle "playchess.com"]
[Source "ChessBase"]
[SourceQuality "1"]
[TimeControl "600+5"]

1. e4 {[%emt 0:00:00]} d5 {[%emt 0:01:01]} 2. exd5 {[%emt 0:00:00]} Nf6 {[%emt 0:00:01]} 3. d4 {[%emt 0:00:04]} Nxd5 {[%emt 0:00:05]} 4. Nf3 {[%emt 0:00:12]} g6 {[%emt 0:00:00]} 5. Bd3 {[%emt 0:00:16]} Bg7 {[%emt 0:00:00]} 6. h3 {[%emt 0:00:02]} O-O {[%emt 0:00:00]} 7. O-O {[%emt 0:00:01]} Nc6 {[%emt 0:00:02]} 8. c3 {[%emt 0:00:02]} e5 {[%emt 0:00:03]} 9. dxe5 {[%emt 0:00:07]} Nxe5 {[%emt 0:00:06]} 10. Bc2 {[%emt 0:00:17]} c6 {[%emt 0:00:09]} 11. Nbd2 {[%emt 0:00:10]} h6 {[%emt 0:00:24]} 12. Ne4 {[%emt 0:00:12]} b6 {[%emt 0:00:12]} 13. Nxe5 {[%emt 0:00:07]} Bxe5 {[%emt 0:00:05]} 14. Bxh6 {[%emt 0:00:03]} Re8 {[%emt 0:00:05]} 15. Qf3 {[%emt 0:00:23]} Bh8 {[%emt 0:00:15]} 16. Rad1 {[%emt 0:00:13]} Qh4 {[%emt 0:00:05]} 17. Bg5 {[%emt 0:00:11]} Qh5 {[%emt 0:00:18]} 18. g4 {[%emt 0:00:43]} Qh7 {[%emt 0:00:09]} 19. Rfe1 {[%emt 0:02:22]} Be6 {[%emt 0:00:04]} 20. Nd6 {[%emt 0:00:10]} Rf8 {[%emt 0:00:13]} 21. h4 {[%emt 0:00:15]} Bd7 {[%emt 0:01:33]} 22. h5 {[%emt 0:00:19]} f5 {[%emt 0:00:45]} 23. Rxd5 {[%emt 0:00:56]} fxg4 {[%emt 0:00:20]} 24. hxg6 {[%emt 0:00:31]} Qh5 {[%emt 0:00:31]} 25. Qg2 {[%emt 0:00:18]} Rf3 {[%emt 0:01:17]} 26. Rde5 {[%emt 0:00:53]} Bxe5 {[%emt 0:00:39]} 27. Rxe5 {[%emt 0:00:02]} Raf8 {[%emt 0:00:04]} 28. Bb3+ {[%emt 0:00:08]} Kh8 {[%emt 0:00:04]} 29. Bf6+ {[%emt 0:00:05]} 1-0

[Event "Skalica Rapid 2020"]
[Site "Skalica"]
[Date "2020.08.29"]
[Round "5.15"]
[White "Kaplan, Milan"]
[Black "Danada, Tomas"]
[Result "0-1"]
[ECO "B06"]
[WhiteElo "1762"]
[BlackElo "2122"]
[Annotator "ChessBase"]
[PlyCount "64"]
[EventDate "2020.08.29"]
[EventType "swiss"]
[EventCountry "SVK"]
[SourceTitle "playchess.com"]
[Source "ChessBase"]
[SourceQuality "1"]
[TimeControl "600+5"]

1. e4 {[%emt 0:00:22]} g6 {[%emt 0:00:00]} 2. d4 {[%emt 0:00:01]} Bg7 {[%emt 0:00:00]} 3. Nc3 {[%emt 0:00:01]} a6 {[%emt 0:00:00]} 4. f4 {[%emt 0:00:05]} d5 {[%emt 0:00:00]} 5. e5 {[%emt 0:00:22]} Nh6 {[%emt 0:00:02]} 6. Nf3 {[%emt 0:00:10]} Bg4 {[%emt 0:00:02]} 7. Be3 {[%emt 0:00:19]} f6 {[%emt 0:00:05]} 8. h3 {[%emt 0:01:51]} Bxf3 {[%emt 0:00:02]} 9. Qxf3 {[%emt 0:00:10]} e6 {[%emt 0:00:26]} 10. g4 {[%emt 0:00:28]} O-O {[%emt 0:00:07]} 11. Qg3 {[%emt 0:00:25]} fxe5 {[%emt 0:00:09]} 12. fxe5 {[%emt 0:00:11]} c5 {[%emt 0:00:01]} 13. h4 {[%emt 0:01:02]} Nc6 {[%emt 0:00:04]} 14. h5 {[%emt 0:02:18]} cxd4 {[%emt 0:00:07]} 15. hxg6 {[%emt 0:00:03]} dxe3 {[%emt 0:00:01]} 16. gxh7+ {[%emt 0:00:03]} Kh8 {[%emt 0:00:02]} 17. Bd3 {[%emt 0:00:56]} Nxe5 {[%emt 0:00:11]} 18. g5 {[%emt 0:00:17]} Nf3+ {[%emt 0:00:09]} 19. Ke2 {[%emt 0:00:16]} Nd4+ {[%emt 0:00:02]} 20. Kd1 {[%emt 0:00:15]} Nhf5 {[%emt 0:00:02]} 21. Bxf5 {[%emt 0:00:09]} Nxf5 {[%emt 0:00:01]} 22. Qg4 {[%emt 0:00:10]} Rc8 {[%emt 0:00:03]} 23. Ne2 {[%emt 0:00:23]} Bxb2 {[%emt 0:00:13]} 24. Rb1 {[%emt 0:00:13]} Bg7 {[%emt 0:00:03]} 25. Nf4 {[%emt 0:00:06]} Qe8 {[%emt 0:00:19]} 26. Rxb7 {[%emt 0:00:30]} e5 {[%emt 0:00:19]} 27. Nh5 {[%emt 0:00:18]} Rxc2 {[%emt 0:00:21]} 28. Nf6 {[%emt 0:00:24]} Rd2+ {[%emt 0:00:07]} 29. Ke1 {[%emt 0:00:14]} Qc6 {[%emt 0:00:02]} 30. Rb1 {[%emt 0:00:18]} Qc2 {[%emt 0:00:06]} 31. Rd1 {[%emt 0:00:08]} Nd4 {[%emt 0:00:28]} 32. Rh3 {[%emt 0:00:03]} e2 {[%emt 0:00:12]} 0-1